bitfinex/quotes_BTCUSD_20241021
["timestamp","ask_amount","ask_price","bid_price","bid_amount"]
[1729532585020,0.20344995,67691.0,67689.0,0.491235]
[1729532585231,0.23810468,67690.0,67689.0,0.491235]
[1729532585398,0.34281092,67690.0,67689.0,0.491235]
[1729532585607,0.26145829,67690.0,67689.0,0.491235]
[1729532585811,0.26145829,67690.0,67689.0,0.488235]
[1729532585812,0.24772862,67690.0,67689.0,0.488235]
[1729532586185,0.20344995,67690.0,67689.0,0.488235]
[1729532586992,0.20944995,67690.0,67689.0,0.490235]
[1729532587461,0.20944995,67690.0,67689.0,0.489235]
[1729532587675,0.20344995,67690.0,67689.0,0.489235]
[1729532588971,0.21044995,67690.0,67689.0,0.490235]
[1729532589880,0.35818195,67690.0,67689.0,0.490235]
[1729532590109,0.43098195,67690.0,67689.0,0.490235]
[1729532590328,0.147751,67681.0,67680.0,0.2220298]
[1729532590553,0.29671015,67681.0,67680.0,0.2220298]
[1729532590771,0.147754,67680.0,67679.0,0.001652]
[1729532590988,0.29671315,67680.0,67679.0,0.001652]
[1729532591260,0.30506742,67680.0,67679.0,0.001652]
[1729532591921,0.00835427,67680.0,67679.0,0.001652]
[1729532592152,0.00835427,67680.0,67679.0,0.149408]
[1729532592371,4.77898998,67690.0,67683.0,0.147745]
[1729532592587,0.14895915,67686.0,67680.0,0.296508]
[1729532592808,0.14895915,67686.0,67682.0,0.147749]
[1729532592809,0.15731342,67686.0,67682.0,0.147749]
[1729532593020,0.15731342,67686.0,67683.0,0.147746]
[1729532593237,0.15731342,67686.0,67681.0,0.147751]
[1729532593465,0.15731342,67686.0,67680.0,0.147753]
[1729532593743,0.15731342,67686.0,67681.0,0.147751]
[1729532593931,0.15931342,67686.0,67681.0,0.147751]
[1729532594158,0.16031342,67686.0,67681.0,0.147751]
[1729532594372,0.16031342,67686.0,67680.0,0.147754]
[1729532594592,0.15731342,67686.0,67680.0,0.147754]
[1729532595917,0.16431342,67686.0,67680.0,0.147754]
[1729532596131,0.16431342,67686.0,67680.0,0.3697828]
[1729532596368,0.16031342,67686.0,67680.0,0.2220298]
[1729532596590,0.16631342,67686.0,67682.0,0.147748]
[1729532597243,0.16631342,67686.0,67681.0,0.295503]
[1729532597244,0.16631342,67686.0,67681.0,0.147751]
[1729532597462,0.16331342,67686.0,67681.0,0.147751]
[1729532597685,0.01435427,67686.0,67685.0,0.147743]
[1729532597901,0.00835427,67686.0,67685.0,0.147743]
[1729532598334,0.00835427,67686.0,67685.0,0.326943]
[1729532598559,0.000826,67693.0,67688.0,0.147735]
[1729532598767,0.14978515,67693.0,67688.0,0.147735]
[1729532599023,0.00825176,67692.0,67687.0,0.147737]
[1729532599928,0.00825176,67692.0,67688.0,0.001]
[1729532600156,0.00825176,67692.0,67685.0,0.0846]
[1729532600394,0.04613738,67691.0,67685.0,0.232341]
[1729532600597,0.04613738,67691.0,67687.0,0.001]
[1729532600806,0.00825176,67690.0,67685.0,0.232341]
[1729532601020,0.04613738,67689.0,67686.0,0.14774]
[1729532601256,0.04613738,67689.0,67688.0,0.001]
[1729532601481,0.04613738,67691.0,67688.0,0.001]
[1729532601922,0.04613738,67691.0,67690.0,0.257332]
[1729532602146,0.018,67692.0,67691.0,0.15273]
[1729532602393,0.008,67692.0,67691.0,0.15773]
[1729532602851,0.000826,67693.0,67692.0,0.147727]
[1729532603071,0.000826,67693.0,67692.0,0.157727]
[1729532603287,0.000826,67693.0,67692.0,0.236127]
[1729532604203,0.000826,67693.0,67692.0,0.335527]
[1729532604857,0.000826,67693.0,67692.0,0.435527]
[1729532605295,0.000826,67693.0,67692.0,0.458527]
[1729532605509,0.000826,67693.0,67692.0,0.468527]
[1729532605510,0.001826,67693.0,67692.0,0.468527]
[1729532605718,0.002826,67693.0,67692.0,0.477527]
[1729532605927,0.001826,67693.0,67692.0,0.468527]
[1729532606151,0.000826,67693.0,67692.0,0.458527]
[1729532606371,0.001826,67693.0,67692.0,0.467527]
[1729532606662,0.001826,67693.0,67692.0,0.458527]
[1729532606846,0.003826,67693.0,67692.0,0.481527]
[1729532607275,0.001826,67693.0,67692.0,0.472527]
[1729532607923,0.001826,67693.0,67692.0,1.172527]
[1729532608132,0.000826,67693.0,67692.0,1.158527]
[1729532608761,0.001826,67693.0,67692.0,1.166527]
[1729532609008,0.002826,67693.0,67692.0,1.180527]
[1729532609877,0.002826,67693.0,67692.0,0.480527]
[1729532610556,0.2220298,67707.0,67706.0,0.226297]
[1729532610557,0.20997558,67707.0,67706.0,0.226297]
[1729532610997,0.00834232,67707.0,67706.0,0.226297]
[1729532611243,0.2220298,67716.0,67709.0,0.14769]
[1729532611490,0.15730147,67715.0,67709.0,0.14769]
[1729532612182,0.15730147,67715.0,67708.0,0.295384]
[1729532612183,0.15730147,67715.0,67708.0,0.147691]
[1729532612621,0.14895915,67715.0,67709.0,0.001]
[1729532612847,0.00834232,67714.0,67709.0,0.001]
[1729532613115,0.14895915,67713.0,67709.0,0.001]
[1729532613347,0.14895915,67713.0,67708.0,0.147691]
[1729532613568,0.00847911,67712.0,67708.0,0.148691]
[1729532614224,0.00847911,67712.0,67708.0,0.001]
[1729532614486,0.14895915,67713.0,67707.0,0.295387]
[1729532614929,0.14895915,67713.0,67710.0,0.147686]
[1729532615143,0.000837,67718.0,67708.0,0.147693]
[1729532615382,0.14895915,67717.0,67711.0,0.295371]
[1729532615566,0.15743826,67717.0,67712.0,0.147684]
[1729532615787,0.005,67714.0,67711.0,0.295371]
[1729532616020,0.15743826,67717.0,67711.0,0.295371]
[1729532616021,0.00847911,67717.0,67716.0,0.147675]
[1729532616236,0.00065919,67718.0,67717.0,0.147673]
[1729532616446,0.00965919,67718.0,67717.0,0.147673]
[1729532616660,0.00065919,67718.0,67717.0,0.147673]
[1729532617125,0.00065919,67718.0,67717.0,0.224273]
[1729532617353,0.00065919,67718.0,67717.0,0.3212516]
[1729532617587,0.00765919,67718.0,67717.0,0.229273]
[1729532617816,0.01665919,67718.0,67717.0,0.230273]
[1729532618060,0.00965919,67718.0,67717.0,0.230273]
[1729532618291,0.00965919,67718.0,67717.0,0.231273]
[1729532618521,0.01665919,67718.0,67717.0,0.231273]
[1729532618764,0.00965919,67718.0,67717.0,0.230273]
[1729532618998,0.00065919,67718.0,67717.0,0.229273]
[1729532619249,0.00565919,67718.0,67717.0,0.234273]
[1729532619538,0.00565919,67718.0,67717.0,0.239273]
[1729532619999,0.00665919,67718.0,67717.0,0.244273]
[1729532622075,0.00665919,67718.0,67717.0,0.0966]
[1729532622249,0.00665919,67718.0,67717.0,0.244273]
[1729532622651,0.00665919,67718.0,67717.0,0.83546195]
[1729532622867,0.00665919,67718.0,67717.0,0.61343215]
[1729532623076,0.00665919,67718.0,67717.0,0.436473]
[1729532623294,0.00665919,67718.0,67717.0,0.2888]
[1729532623491,0.00165919,67718.0,67717.0,0.2888]
[1729532623704,0.00065919,67718.0,67717.0,0.2838]
[1729532623901,0.00165919,67718.0,67717.0,0.438473]
[1729532624129,0.00165919,67718.0,67717.0,0.2838]
[1729532624611,0.00165919,67718.0,67717.0,0.426473]
[1729532624828,0.00165919,67718.0,67717.0,0.432473]
[1729532625397,0.00165919,67718.0,67717.0,0.68425075]
[1729532625561,0.00165919,67718.0,67717.0,0.71725075]
[1729532625744,0.00065919,67718.0,67717.0,0.71225075]
[1729532626227,0.00065919,67718.0,67717.0,0.61543215]
[1729532626228,0.00165919,67718.0,67717.0,0.61543215]
[1729532626438,0.00165919,67718.0,67717.0,0.61343215]
[1729532626887,0.00265919,67718.0,67717.0,0.439473]
[1729532627099,0.00065919,67718.0,67717.0,0.431473]
[1729532627317,0.00065919,67718.0,67717.0,1.36189888]
[1729532627535,0.00165919,67718.0,67717.0,1.37189888]
[1729532627746,0.00165919,67718.0,67717.0,1.33143215]
[1729532628192,0.00165919,67718.0,67717.0,1.32343215]
[1729532628616,0.00165919,67718.0,67717.0,1.33343215]
[1729532628836,0.2220298,67743.0,67738.0,0.147626]
[1729532629051,0.00745919,67741.0,67738.0,0.005]
[1729532629263,0.000836,67744.0,67739.0,0.0476262]
[1729532629506,0.000836,67744.0,67738.0,0.005]
[1729532629507,0.00745919,67741.0,67738.0,0.005]
[1729532630203,0.147623,67740.0,67738.0,0.006]
[1729532630416,0.0075,67739.0,67738.0,0.005]
[1729532630634,0.147625,67739.0,67738.0,0.005]
[1729532630840,0.147625,67739.0,67738.0,0.006]
[1729532630841,0.0075,67739.0,67738.0,0.006]
[1729532631073,0.155125,67739.0,67738.0,0.007]
[1729532631285,0.0075,67739.0,67738.0,0.007]
[1729532631707,0.001826,67741.0,67738.0,0.006]
[1729532631914,0.0075,67739.0,67738.0,0.005]
[1729532632130,0.001,67739.0,67738.0,0.005]
[1729532632367,0.001,67739.0,67738.0,0.006]
[1729532632594,0.0075,67739.0,67738.0,0.005]
[1729532632810,0.000826,67741.0,67738.0,0.005]
[1729532632811,0.002826,67741.0,67738.0,0.006]
[1729532633020,0.0075,67740.0,67738.0,0.007]
[1729532633232,0.0075,67740.0,67738.0,0.006]
[1729532633448,0.0075,67740.0,67738.0,0.001]
[1729532633683,0.147624,67740.0,67738.0,0.006]
[1729532633907,0.0075,67739.0,67738.0,0.006]
[1729532634122,0.0075,67739.0,67738.0,0.005]
[1729532634342,0.001,67739.0,67738.0,0.005]
[1729532634573,0.001,67739.0,67736.0,0.005]
[1729532634790,0.001,67739.0,67738.0,0.005]
[1729532635227,0.001,67739.0,67738.0,0.006]
[1729532635435,0.147621,67741.0,67738.0,0.005]
[1729532635637,0.295242,67741.0,67738.0,0.005]
[1729532635850,0.001,67739.0,67738.0,0.005]
[1729532636287,0.0085,67739.0,67738.0,0.005]
[1729532636503,0.148625,67739.0,67738.0,0.005]
[1729532636703,0.0085,67739.0,67738.0,0.005]
[1729532636917,0.0085,67739.0,67736.0,0.005]
[1729532637123,0.0075,67739.0,67736.0,0.005]
[1729532637342,0.001,67741.0,67738.0,0.006]
[1729532637581,0.148622,67741.0,67738.0,0.006]
[1729532637799,0.296242,67741.0,67738.0,0.005]
[1729532638003,0.001826,67742.0,67738.0,0.005]
[1729532638217,0.001,67739.0,67738.0,0.005]
[1729532638665,0.001826,67742.0,67738.0,0.006]
[1729532638873,0.149445,67742.0,67738.0,0.006]
[1729532639085,0.149445,67742.0,67738.0,0.007]
[1729532639086,0.001,67741.0,67738.0,0.007]
[1729532639339,0.001,67741.0,67738.0,0.006]
[1729532639742,0.001,67741.0,67738.0,0.007]
[1729532639918,0.001,67741.0,67738.0,0.006]
[1729532640585,0.148622,67741.0,67738.0,0.006]
[1729532640808,0.001826,67742.0,67738.0,0.005]
[1729532641014,0.149445,67742.0,67738.0,0.005]
[1729532641271,0.150445,67742.0,67738.0,0.006]
[1729532641481,0.150445,67742.0,67738.0,0.007]
[1729532641670,0.150445,67742.0,67738.0,0.006]
[1729532641915,0.002826,67742.0,67738.0,0.007]
[1729532642118,0.002826,67742.0,67738.0,0.002]
[1729532642330,0.002826,67742.0,67738.0,0.007]
[1729532643222,0.145443,67743.0,67738.0,0.007]
[1729532643653,0.000836,67744.0,67738.0,0.007]
[1729532643857,0.000826,67742.0,67738.0,0.007]
[1729532644068,0.000826,67742.0,67738.0,0.006]
[1729532645143,0.000826,67742.0,67738.0,0.005]
[1729532645569,0.000826,67742.0,67738.0,0.006]
[1729532645772,0.001826,67742.0,67738.0,0.007]
[1729532647033,0.001826,67742.0,67740.0,0.005]
[1729532647246,0.001826,67742.0,67738.0,0.012]
[1729532647478,0.00761638,67741.0,67738.0,0.007]
[1729532647697,0.147625,67739.0,67738.0,0.007]
[1729532647904,0.147623,67740.0,67738.0,0.006]
[1729532648117,0.296064,67742.0,67738.0,0.006]
[1729532648118,0.000826,67742.0,67738.0,0.006]
[1729532648329,0.000826,67742.0,67740.0,0.001]
[1729532648542,0.000826,67742.0,67740.0,0.006]
[1729532648750,0.000826,67742.0,67740.0,0.005]
[1729532649892,0.000826,67742.0,67740.0,0.006]
[1729532650892,0.00648095,67741.0,67740.0,0.006]
[1729532651052,0.00648095,67741.0,67740.0,0.007]
[1729532651461,0.000826,67742.0,67740.0,0.007]
[1729532651685,0.00648095,67741.0,67740.0,0.006]
[1729532652157,0.00648095,67741.0,67740.0,0.007]
[1729532652593,0.00648095,67741.0,67740.0,0.0896]
[1729532652828,0.000826,67742.0,67740.0,0.0896]
[1729532653262,0.04609318,67741.0,67740.0,0.0896]
[1729532653722,0.04609318,67741.0,67740.0,0.0886]
[1729532653930,0.04609318,67741.0,67740.0,0.0876]
[1729532654145,0.19371418,67741.0,67740.0,0.001]
[1729532654371,0.34915428,67741.0,67740.0,0.002]
[1729532654606,0.18550787,67741.0,67729.0,0.005]
[1729532654809,0.18550787,67741.0,67725.0,0.3046298]
[1729532654810,0.147634,67735.0,67734.0,0.2220298]
[1729532655082,0.295282,67732.0,67726.0,0.01]
[1729532655279,0.442935,67730.0,67726.0,0.005]
[1729532655449,0.03006777,67729.0,67726.0,0.005]
[1729532655650,0.00648216,67728.0,67726.0,0.005]
[1729532655859,0.147641,67732.0,67726.0,0.005]
[1729532656096,0.05260389,67731.0,67726.0,0.005]
[1729532656466,0.04612173,67730.0,67726.0,0.005]
[1729532656922,0.00648216,67729.0,67726.0,0.005]
[1729532657651,0.147646,67730.0,67726.0,0.005]
[1729532657869,0.00648216,67728.0,67726.0,0.007]
[1729532658071,0.19377536,67729.0,67726.0,0.007]
[1729532658072,0.04612836,67729.0,67726.0,0.006]
[1729532658280,0.44423415,67734.0,67726.0,0.006]
[1729532658281,0.00648216,67727.0,67726.0,0.006]
[1729532658699,0.008,67729.0,67726.0,0.005]
[1729532658910,0.00648216,67727.0,67726.0,0.006]
[1729532659125,0.009,67730.0,67726.0,0.005]
[1729532659339,0.009,67730.0,67727.0,0.005]
[1729532659752,0.007,67729.0,67727.0,0.005]
[1729532660184,0.009,67730.0,67727.0,0.005]
[1729532660435,0.016,67730.0,67727.0,0.005]
[1729532660860,0.007,67730.0,67727.0,0.005]
[1729532661071,0.147639,67733.0,67727.0,0.006]
[1729532661289,0.007,67729.0,67727.0,0.007]
[1729532661930,0.007,67729.0,67727.0,0.006]
[1729532662351,0.007,67729.0,67727.0,0.007]
[1729532662556,0.007,67729.0,67727.0,0.006]
[1729532662971,0.147639,67733.0,67727.0,0.005]
[1729532663174,0.007,67730.0,67727.0,0.006]
[1729532663802,0.147641,67732.0,67727.0,0.005]
[1729532664065,0.007,67729.0,67727.0,0.006]
[1729532664271,0.007,67729.0,67728.0,0.005]
[1729532664479,0.008,67729.0,67728.0,0.1005]
[1729532664686,0.147637,67734.0,67728.0,0.1005]
[1729532664902,0.007,67730.0,67728.0,0.1005]
[1729532665762,0.20176035,67729.0,67728.0,0.001]
[1729532666385,0.06111335,67729.0,67728.0,0.002]
[1729532666610,0.06111335,67729.0,67728.0,0.007]
[1729532667015,0.05311335,67729.0,67728.0,0.006]
[1729532667222,0.007,67729.0,67728.0,0.007]
[1729532667611,0.007,67729.0,67728.0,0.006]
[1729532667864,0.007,67729.0,67728.0,0.007]
[1729532667865,0.015,67729.0,67728.0,0.007]
[1729532668053,0.20875538,67729.0,67728.0,0.002]
[1729532668516,0.015,67729.0,67728.0,0.002]
[1729532669534,0.015,67729.0,67728.0,0.007]
[1729532672973,0.015,67729.0,67728.0,0.1029]
[1729532673184,0.015,67729.0,67728.0,0.1079]
[1729532678123,0.015,67729.0,67728.0,0.012]
[1729532678544,0.015,67729.0,67728.0,0.007]
[1729532678756,0.015,67729.0,67728.0,0.012]
[1729532678958,0.015,67729.0,67728.0,0.007]
[1729532680030,0.015,67729.0,67728.0,0.013652]
[1729532680308,0.162647,67729.0,67728.0,0.008652]
[1729532680518,0.2087661,67729.0,67728.0,0.003652]
[1729532680730,0.31160615,67729.0,67728.0,0.003652]
[1729532680944,0.3577272,67729.0,67728.0,0.003652]
[1729532682692,0.2100802,67729.0,67728.0,0.003652]
[1729532682899,0.3577272,67729.0,67728.0,0.008652]
[1729532683170,0.31160615,67729.0,67728.0,0.008652]
[1729532683384,0.35773014,67729.0,67728.0,0.003652]
[1729532685744,0.21008314,67729.0,67728.0,0.003652]
[1729532687487,0.35773014,67729.0,67728.0,0.003652]
[1729532687713,0.21008314,67729.0,67728.0,0.003652]
[1729532689693,0.35773014,67729.0,67728.0,0.003652]
[1729532689895,0.21008314,67729.0,67728.0,0.003652]
[1729532690739,0.21008314,67729.0,67728.0,0.081552]
[1729532693449,0.21008314,67729.0,67728.0,0.003652]
[1729532697415,0.25435175,67729.0,67728.0,0.003652]
[1729532698251,0.21008314,67729.0,67728.0,0.003652]
[1729532699530,0.25435175,67729.0,67728.0,0.003652]
[1729532701727,0.27658847,67729.0,67728.0,0.003652]
[1729532702183,0.53233014,67729.0,67728.0,0.003652]
[1729532702396,0.53433014,67729.0,67728.0,0.003652]
[1729532702835,0.53233014,67729.0,67728.0,0.003652]
[1729532703068,0.65331151,67729.0,67728.0,0.002652]
[1729532703300,0.20308314,67729.0,67728.0,0.002652]
[1729532703568,0.20208314,67729.0,67728.0,0.002652]
[1729532703783,0.20208314,67729.0,67728.0,0.003652]
[1729532704009,0.21608314,67729.0,67728.0,0.003652]
[1729532704236,0.2825537,67729.0,67728.0,0.002652]
[1729532704454,0.2905537,67729.0,67728.0,0.003652]
[1729532704673,0.2835537,67729.0,67728.0,0.002652]
[1729532705150,0.37173014,67729.0,67728.0,0.003652]
[1729532705780,0.4381993,67729.0,67728.0,0.003652]
[1729532706259,0.37173014,67729.0,67728.0,0.003652]
[1729532706729,0.22408314,67729.0,67728.0,0.003652]
[1729532706936,0.29055163,67729.0,67728.0,0.003652]
[1729532707376,0.43819863,67729.0,67728.0,0.003652]
[1729532707630,0.29055163,67729.0,67728.0,0.003652]
[1729532707863,0.43819863,67729.0,67728.0,0.003652]
[1729532708310,0.29055163,67729.0,67728.0,0.003652]
[1729532708775,0.43819863,67729.0,67728.0,0.003652]
[1729532709636,0.29055163,67729.0,67728.0,0.003652]
[1729532710697,0.43819863,67729.0,67728.0,0.003652]
[1729532710912,0.29055163,67729.0,67728.0,0.003652]
[1729532711141,0.07512399,67729.0,67728.0,0.335001]
[1729532711371,0.029,67729.0,67728.0,0.4981974]
[1729532712237,0.029,67729.0,67728.0,0.287352]
[1729532712449,0.029,67729.0,67728.0,0.187352]
[1729532712665,0.029,67729.0,67728.0,0.335001]
[1729532712880,0.029,67729.0,67728.0,0.182352]
[1729532713145,0.029,67729.0,67728.0,0.003652]
[1729532713146,0.176647,67729.0,67728.0,0.003652]
[1729532713356,0.43822397,67729.0,67728.0,0.003652]
[1729532713573,0.37175548,67729.0,67728.0,0.003652]
[1729532714670,0.43821068,67729.0,67728.0,0.003652]
[1729532714891,0.43821068,67729.0,67728.0,0.002652]
[1729532714892,0.43121068,67729.0,67728.0,0.002652]
[1729532715366,0.36475548,67729.0,67728.0,0.002652]
[1729532715608,0.45338103,67729.0,67728.0,0.002652]
[1729532716300,0.43336503,67729.0,67728.0,0.001652]
[1729532716508,0.43436503,67729.0,67728.0,0.001652]
[1729532716714,0.43236503,67729.0,67728.0,0.001652]
[1729532716927,0.43736503,67729.0,67728.0,0.001652]
[1729532717130,0.44336503,67729.0,67728.0,0.002652]
[1729532721143,0.14675888,67729.0,67728.0,0.150301]
[1729532721357,0.05814933,67729.0,67728.0,0.235501]
[1729532721576,0.012,67729.0,67728.0,0.240501]
[1729532722492,0.012,67729.0,67728.0,0.087852]
[1729532722738,0.012,67729.0,67728.0,0.235501]
[1729532723160,0.012,67729.0,67728.0,0.087852]
[1729532723579,0.012,67729.0,67728.0,0.235501]
[1729532727214,0.012,67729.0,67728.0,0.4625308]
[1729532727466,0.012,67729.0,67728.0,0.240501]
[1729532728585,0.007,67729.0,67728.0,0.240501]
[1729532729209,0.0443075,67740.0,67735.0,0.147633]
[1729532729450,0.09042066,67739.0,67733.0,0.005]
[1729532729658,0.04611316,67738.0,67733.0,0.152636]
[1729532729869,0.04611316,67737.0,67734.0,0.147635]
[1729532730077,0.0443075,67739.0,67733.0,0.005]
[1729532730284,0.04611337,67738.0,67734.0,0.147634]
[1729532730506,0.19409265,67741.0,67735.0,0.147631]
[1729532730719,0.147627,67739.0,67733.0,0.005]
[1729532730932,0.19409265,67741.0,67735.0,0.147633]
[1729532731056,0.34171365,67741.0,67734.0,0.147634]
[1729532731276,0.04610664,67740.0,67734.0,0.148634]
[1729532731483,0.04610664,67740.0,67735.0,0.147633]
[1729532731680,0.04610664,67740.0,67734.0,0.001]
[1729532731887,0.04610664,67740.0,67737.0,0.0777]
[1729532732141,0.14895915,67739.0,67734.0,0.001]
[1729532732343,0.14895915,67739.0,67733.0,0.007]
[1729532732344,0.19373464,67738.0,67733.0,0.007]
[1729532732512,0.14895915,67739.0,67736.0,0.005]
[1729532732733,0.29658415,67739.0,67738.0,0.005]
[1729532733090,0.14895915,67739.0,67738.0,0.005]
[1729532733301,0.15095915,67739.0,67738.0,0.005]
[1729532733537,0.295255,67738.0,67733.0,0.005]
[1729532733741,0.04609404,67737.0,67736.0,0.005]
[1729532734810,0.04609404,67737.0,67733.0,0.005]
[1729532735060,0.19505319,67736.0,67731.0,0.005]
[1729532735265,0.19505319,67736.0,67728.0,0.001652]
[1729532735266,0.04609404,67735.0,67728.0,0.001652]
[1729532735476,0.147638,67734.0,67728.0,0.001652]
[1729532735697,0.14764,67733.0,67729.0,0.005]
[1729532735928,0.147647,67729.0,67728.0,0.001652]
[1729532736143,0.34270419,67729.0,67728.0,0.001652]
[1729532736346,0.40910685,67729.0,67728.0,0.001652]
[1729532736552,0.40911035,67729.0,67728.0,0.001652]
[1729532736972,0.34270419,67729.0,67728.0,0.001652]
[1729532737799,0.40911035,67729.0,67728.0,0.001652]
[1729532738007,0.34270419,67729.0,67728.0,0.001652]
[1729532738414,0.35170419,67729.0,67728.0,0.002652]
[1729532739023,0.35470419,67729.0,67728.0,0.002652]
[1729532739231,0.34270419,67729.0,67728.0,0.001652]
[1729532739450,0.35070419,67729.0,67728.0,0.002652]
[1729532739879,0.35470419,67729.0,67728.0,0.002652]
[1729532740084,0.3989709,67729.0,67728.0,0.001652]
[1729532740489,0.2513239,67729.0,67728.0,0.001652]
[1729532740715,0.2613239,67729.0,67728.0,0.002652]
[1729532741695,0.2393239,67729.0,67728.0,0.001652]
[1729532741916,0.2483239,67729.0,67728.0,0.002652]
[1729532742118,0.2563239,67729.0,67728.0,0.003652]
[1729532742359,0.2473239,67729.0,67728.0,0.001652]
[1729532742902,0.22005719,67729.0,67728.0,0.003652]
[1729532743122,0.21899983,67729.0,67728.0,0.003652]
[1729532743347,0.21899983,67729.0,67728.0,0.002652]
[1729532743348,0.21099983,67729.0,67728.0,0.002652]
[1729532743606,0.20299983,67729.0,67728.0,0.001652]
[1729532743825,0.20699983,67729.0,67728.0,0.001652]
[1729532744505,0.05909804,67729.0,67728.0,0.086552]
[1729532744783,0.013,67729.0,67728.0,0.234201]
[1729532745028,0.04426671,67736.0,67728.0,0.086552]
[1729532745261,0.003,67729.0,67728.0,0.529499]
[1729532745472,0.007,67729.0,67728.0,0.529499]
[1729532745694,0.14895915,67735.0,67729.0,0.147647]
[1729532745904,0.04611047,67734.0,67729.0,0.147647]
[1729532746324,0.04611047,67734.0,67728.0,0.086552]
[1729532746527,0.04611047,67734.0,67728.0,0.2342]
[1729532746738,0.04611047,67734.0,67729.0,0.005]
[1729532747157,0.04611047,67734.0,67729.0,0.152645]
[1729532747391,0.04611047,67734.0,67729.0,0.005]
[1729532748473,0.04811047,67734.0,67729.0,0.005]
[1729532748696,0.007,67734.0,67733.0,0.005]
[1729532748908,0.007,67734.0,67733.0,0.328638]
[1729532749119,0.000826,67741.0,67739.0,0.005]
[1729532749343,0.147623,67740.0,67739.0,0.005]
[1729532749559,0.19506467,67740.0,67734.0,0.147635]
[1729532749774,0.19506467,67740.0,67733.0,0.323638]
[1729532749775,0.002,67734.0,67733.0,0.323638]
[1729532749985,0.002,67734.0,67733.0,0.181]
[1729532750412,0.002,67734.0,67733.0,0.328638]
[1729532750828,0.002,67734.0,67733.0,0.181]
[1729532751024,0.002,67734.0,67733.0,0.328638]
[1729532751238,0.008826,67741.0,67735.0,0.295267]
[1729532751444,0.008826,67741.0,67739.0,0.005]
[1729532751687,0.006,67740.0,67739.0,0.005]
[1729532752122,0.000826,67741.0,67739.0,0.005]
[1729532752530,0.004826,67741.0,67740.0,0.0767]
[1729532752739,0.004826,67741.0,67740.0,0.2625189]
[1729532752943,0.004826,67741.0,67740.0,0.3668189]
[1729532752944,0.000826,67741.0,67740.0,0.3668189]
[1729532753372,0.001826,67741.0,67740.0,0.328623]
[1729532753569,0.001826,67741.0,67740.0,0.181]
[1729532754408,0.000826,67741.0,67740.0,0.328623]
[1729532754821,0.000826,67741.0,67740.0,0.332623]
[1729532754972,0.000826,67741.0,67740.0,0.335623]
[1729532755179,0.000826,67741.0,67740.0,0.328623]
[1729532755588,0.29740615,67741.0,67740.0,0.005]
[1729532755798,0.3434929,67741.0,67740.0,0.005]
[1729532756411,0.4911169,67741.0,67733.0,0.0763]
[1729532756620,0.4911169,67741.0,67734.0,0.2220298]
[1729532756621,0.147625,67739.0,67734.0,0.2220298]
[1729532756911,0.147625,67739.0,67733.0,0.0763]
[1729532756912,0.04608675,67738.0,67733.0,0.0763]
[1729532757889,0.04608675,67738.0,67733.0,0.0813]
[1729532758112,0.04608675,67737.0,67733.0,0.0813]
[1729532758288,0.05506823,67741.0,67733.0,0.0813]
[1729532758414,0.04608805,67740.0,67733.0,0.0813]
[1729532758649,0.04608805,67740.0,67733.0,0.0843]
[1729532758855,0.147626,67739.0,67733.0,0.0863]
[1729532759066,0.04608805,67738.0,67733.0,0.0843]
[1729532759279,0.04608805,67738.0,67733.0,0.0813]
[1729532759491,0.04608805,67737.0,67733.0,0.0813]
[1729532759697,0.147626,67739.0,67733.0,0.0763]
[1729532759922,0.19371593,67738.0,67733.0,0.0763]
[1729532760153,0.04608793,67737.0,67733.0,0.0763]
[1729532760353,0.148624,67740.0,67733.0,0.0763]
[1729532760558,0.34267111,67739.0,67733.0,0.0763]
[1729532760766,0.04608596,67738.0,67733.0,0.0763]
[1729532761207,0.14895915,67737.0,67730.0,0.005]
[1729532761420,0.147647,67729.0,67728.0,0.001652]
[1729532761628,0.14895915,67729.0,67728.0,0.006652]
[1729532762491,0.29760615,67729.0,67728.0,0.015652]
[1729532762700,0.14995915,67729.0,67728.0,0.015652]
[1729532763149,0.14895915,67729.0,67728.0,0.006652]
[1729532763400,0.14895915,67729.0,67728.0,0.009652]
[1729532763629,0.14895915,67729.0,67728.0,0.004652]
[1729532763986,0.29660615,67729.0,67728.0,0.004652]
[1729532764219,0.34969892,67729.0,67728.0,0.004652]
[1729532764944,0.34969892,67729.0,67728.0,0.002652]
[1729532765184,0.35769892,67729.0,67728.0,0.002652]
[1729532765413,0.36733633,67729.0,67728.0,0.002652]
[1729532765930,0.36733633,67729.0,67726.0,0.001652]
[1729532765931,0.254651,67727.0,67726.0,0.001652]
[1729532766161,0.60370292,67727.0,67726.0,0.001652]
[1729532766835,1.73770231,67727.0,67726.0,0.000252]
[1729532767262,1.81050231,67727.0,67726.0,0.000252]
[1729532767465,1.94315113,67727.0,67726.0,0.000252]
[1729532768094,1.95615113,67727.0,67726.0,0.001252]
[1729532768300,1.82350231,67727.0,67726.0,0.001252]
[1729532768513,1.82450231,67727.0,67726.0,0.001252]
[1729532768721,0.005,67718.0,67717.0,0.001652]
[1729532768927,4.36120305,67718.0,67717.0,0.001652]
[1729532769134,4.42940223,67718.0,67717.0,0.001652]
[1729532770388,4.31889116,67718.0,67717.0,0.001652]
[1729532770598,4.31689116,67718.0,67717.0,0.001652]
[1729532771230,4.31689116,67718.0,67697.0,0.2220298]
[1729532771231,0.002,67707.0,67697.0,0.2220298]
[1729532771440,0.34962844,67707.0,67697.0,0.2220298]
[1729532772072,0.14773,67691.0,67690.0,0.2220298]
[1729532772301,0.29668915,67691.0,67690.0,0.2220298]